Cogmind - Beta 14 @@@ ROGUE MODE // 2025.03.29 @ 17:46:18 Player: toydarian Result: Self-destructed Performance ------------- Evolutions (3) 1500 Regions Visited (4) 800 Robots Destroyed (81) 405 Value Destroyed (2492) 2492 Prototype IDs (2) 40 Alien Tech Used (0) 0 Bonus (72) 72 TOTAL SCORE: 5309 Bonus ------- High Alert Combat Kills 72 Cogmind --------- Core Integrity 574/700 Matter 275/300 Energy 100/100 System Corruption 1% Temperature Cool (0) Movement Treading (400) Ox3 Location -7/Factory Parts ------- > --- POWER (1) -------- (None) > --- PROPULSION (3) --- Light Treads > --- UTILITY (6) ------ Improved Cooling System High-capacity Storage Unit Advanced Visual Processing Unit Seismic Detector Medium Reflective Plating System Restoration Module > --- WEAPON (3) ------- Gauss Rifle Gauss Cannon > --- INVENTORY (20) --- Improved Deuterium Engine Advanced Heat Sink Coolant Injector High-capacity Matter Pod (200) Improved Sensor Array Improved Signal Interpreter Improved Terrain Scanner Seismic Detector Hardened Medium Armor Plating Improved Light Armor Plating Medium Reflective Plating System Shield High-powered Tractor Beam Heavy Particle Cannon Gauss Rifle Flak Gun Light Cannon Heavy Missile Launcher Heavy Missile Launcher Powered Hammer Peak State ------------ > --- POWER ------------ Nuclear Core > --- PROPULSION ------- Light Treads Light Treads > --- UTILITY ---------- Improved Cooling System High-capacity Storage Unit Advanced Visual Processing Unit Seismic Detector Medium Reflective Plating System Restoration Module > --- WEAPON ----------- Gauss Rifle Gauss Cannon Powered Hammer > --- INVENTORY -------- Improved Deuterium Engine Advanced Heat Sink Coolant Injector High-capacity Matter Pod Improved Sensor Array Improved Signal Interpreter Improved Terrain Scanner Seismic Detector Hardened Medium Armor Plating Improved Light Armor Plating Medium Reflective Plating System Shield High-powered Tractor Beam Heavy Particle Cannon Gauss Rifle Flak Gun Light Cannon Heavy Missile Launcher Heavy Missile Launcher [Rating: 40] Favorites ----------- Power Heavy Ion Engine Engine Heavy Ion Engine Power Core Nuclear Core Propulsion Light Treads Treads Light Treads Wheel Wheel Utility High-capacity Storage Unit Device Seismic Detector Storage High-capacity Storage Unit Processor Advanced Visual Processing Unit Hackware Hacking Suite Protection Hardened Light Armor Plating Weapon Improved Light Cannon Energy Gun Particle Gun Energy Cannon Heavy Particle Cannon Ballistic Gun Light Assault Rifle Ballistic Cannon Improved Light Cannon Launcher Improved Grenade Launcher Impact Weapon Powered Hammer Build | -11 -10 -9 -8 -7 ------- Run | Yrd Mat Mat Mat Fac Slots Evolved 6 | . . 2 2 2 Power . | . . . . . Propulsion 1 | . . . . 1 Utility 4 | . . 1 2 1 Weapon 1 | . . 1 . . Parts Attached 76 | 7 14 9 31 15 Power 7 | 1 2 2 1 1 Engine 6 | 1 2 2 1 . Core 1 | . . . . 1 Reactor . | . . . . . Propulsion 14 | 2 2 3 5 2 Treads 5 | . . . 3 2 Leg . | . . . . . Wheel 9 | 2 2 3 2 . Hover . | . . . . . Flight . | . . . . . Utility 18 | 2 4 1 6 5 Device 7 | 1 1 1 1 3 Storage 4 | 1 3 . . . Processor 1 | . . . 1 . Hackware 1 | . . . . 1 Protection 5 | . . . 4 1 Artifact . | . . . . . Weapon 37 | 2 6 3 19 7 Energy Gun 8 | 1 4 . 3 . Energy Cannon 1 | . . . 1 . Ballistic Gun 16 | 1 1 2 9 3 Ballistic Cannon 3 | . . . 2 1 Launcher 3 | . 1 . 2 . Special Weapon . | . . . . . Impact Weapon 6 | . . 1 2 3 Slashing Weapon . | . . . . . Piercing Weapon . | . . . . . Special Melee Weapon . | . . . . . Unidentified Prototypes 2 | . . 1 1 . Parts Lost 17 | . 3 1 10 3 Power 2 | . . . 1 1 Propulsion 6 | . . 1 3 2 Utility 2 | . . . 2 . Weapon 7 | . 3 . 4 . Highest Loss Streak 8 | . 1 1 8 2 To Critical Strikes . | . . . . . Average Slot Usage (%) 97 | . 97 99 97 97 Engine 7 | . 14 10 9 2 Core 1 | . . . . 4 Treads 9 | . . . 3 21 Wheel 12 | . 27 21 14 . Device 15 | . 14 22 15 14 Storage 9 | . 14 11 9 7 Processor 5 | . . . 8 7 Hackware 2 | . . . . 6 Protection 6 | . . . 10 7 Energy Gun 4 | . 11 8 2 1 Ballistic Gun 12 | . 13 22 17 5 Ballistic Cannon 5 | . . . 5 9 Impact Weapon 2 | . . 2 1 5 Peak Build Rating 40 | 7 10 17 30 40 Average Rating 23 | 6 7 14 24 35 On Entrance 12 | . 7 9 17 27 Naked Turns . | . . . . . Heaviest Build 72 | 15 51 56 70 72 Greatest Support 60 | 20 20 26 40 60 Greatest Overweight (x) 5 | . 2 2 5 3 Average Overweight (x) 1 | . 1 1 1 1 Largest Inventory Capacity 20 | 8 20 20 20 20 Average Capacity 19 | 7 19 20 20 20 Most Carried 20 | 8 16 20 20 20 Average Carried 16 | 4 9 16 18 18 Final Capacity 20 | 8 20 20 20 20 Final Carried 20 | 8 16 20 15 20 Class Distribution -------------------- 31% | Scavenger-Mutant 27% | Mutant 19% | Tank 11% | Scavenger-Tank 5% | Gunner 4% | Scavenger-Gunner Dominant Class ---------------- Mutant | -10/Materials Scavenger-Gunner | -9/Materials Tank | -8/Materials Scavenger-Mutant | -7/Factory Resources | -11 -10 -9 -8 -7 ----------- Run | Yrd Mat Mat Mat Fac Matter Collected 2611 | 402 502 261 1016 430 Remotely . | . . . . . Salvage Created 2717 | 163 610 405 1190 349 Parts 159 | 18 40 20 60 21 Haulers Intercepted 4 | . 1 1 2 . Recyclers Shooed 1 | . 1 . . . Parts Field Recycled . | . . . . . Retrieved Matter . | . . . . . Parts Self-Destructed . | . . . . . Prevented . | . . . . . Kills | -11 -10 -9 -8 -7 ------- Run | Yrd Mat Mat Mat Fac Combat Hostiles Destroyed 55 | . 12 6 28 9 Guns 38 | . 10 6 21 1 Cannons 10 | . . . 3 7 AOE 7 | . 2 . 4 1 Classes Destroyed 16 | 3 4 2 4 3 Worker 9 | 1 1 1 5 1 Builder 1 | . 1 . . . Tunneler 4 | 4 . . . . Hauler 4 | . 1 1 2 . Recycler 3 | 1 . 1 1 . Mechanic 1 | . . . 1 . Operator 1 | . 1 . . . Watcher 3 | . . 1 2 . Swarmer 6 | . . . 6 . Grunt 32 | . 12 5 13 2 Brawler 1 | . . . 1 . Duelist 3 | . . . 3 . Sentry 8 | . . 1 5 2 Specialist 2 | . . . . 2 Hunter 1 | . . . . 1 Programmer 2 | . . . . 2 Best Kill Streak 20 | 3 3 3 20 2 Combat Bots Only 14 | . 3 2 14 2 Max Kills in Single Turn 3 | 1 1 2 3 1 Gunslinging . | . . . . . Exploded 2 | . 1 . 2 1 Melee . | . . . . . Uniques/NPCs Destroyed . | . . . . . Combat | -11 -10 -9 -8 -7 -------- Run | Yrd Mat Mat Mat Fac Hostile Shots Fired 396 | . 45 27 200 124 Missed 122 | . 14 9 52 47 Damage Taken 3612 | . 475 210 2035 892 Core 593 | . 133 33 301 126 Absorbed by Shields . | . . . . . Ignored by Resistances 247 | . . . 202 45 Core Remaining (%) 70 | 100 46 91 45 . Volleys Fired 228 | 35 49 26 92 26 Largest 3 | 1 2 3 3 3 Hottest 129 | 20 85 105 129 115 Shots Fired 516 | 35 83 74 267 57 Gun 416 | 35 82 74 212 13 Cannon 94 | . . . 50 44 Launcher 6 | . 1 . 5 . Special . | . . . . . Kinetic 419 | 35 48 52 227 57 Thermal 69 | . 12 22 35 . Explosive 6 | . 1 . 5 . Electromagnetic 22 | . 22 . . . Robot Hit Streak 17 | 6 8 12 16 17 Robot Miss Streak 5 | 5 3 4 5 2 Penetration Max . | . . . . . Secondary Targets 4 | . 2 . 2 . Max Gunslinging Chain 1 | . 1 . 1 . Shots Hit Robots 322 | 16 59 48 158 41 Core Hits 154 | 7 27 18 84 18 Critical Kills 1 | . . . 1 . Critical Parts Destroyed 1 | . . 1 . . Critical Strikes 6 | . . 2 1 3 Burn 1 | . . 1 . . Destroy 2 | . . 1 1 . Blast 3 | . . . . 3 Melee Attacks 32 | . . 3 3 26 Impact 32 | . . 3 3 26 Slashing . | . . . . . Piercing . | . . . . . Sneak Attacks 2 | . . 1 . 1 Combat Hostiles . | . . . . . Follow-up Attacks . | . . . . . Damage Inflicted 6644 | 212 989 716 3563 1164 Guns 4024 | 212 792 620 2219 181 Cannons 1289 | . . . 545 744 Explosions 1032 | . 163 . 756 113 Melee 265 | . . 96 43 126 Ramming 34 | . 34 . . . Kinetic 4404 | 212 433 326 2508 925 Thermal 768 | . 218 294 256 . Explosive 939 | . 127 . 699 113 Electromagnetic 234 | . 177 . 57 . Impact 265 | . . 96 43 126 Slashing . | . . . . . Piercing . | . . . . . Highest Corruption 5 | . 5 . 5 2 Average Corruption 4 | . 5 . 5 1 Corruption Purged 1 | . . . . 1 Corruption Blocked . | . . . . . Effects 14 | . . . 12 2 Message Errors 2 | . . . 1 1 Matter Fused 2 | . . . 2 . Energy Discharges 2 | . . . 1 1 Parts Rejected 1 | . . . 1 . Data Loss (minor) 1 | . . . 1 . Data Loss (major) 2 | . . . 2 . Misfires 1 | . . . 1 . Alerts 1 | . . . 1 . Weapon Failures 2 | . . . 2 . Overload Shots . | . . . . . Overflow Damage 213 | . 67 36 24 86 Projectiles . | . . . . . Explosions 70 | . 67 . 3 . Melee 143 | . . 36 21 86 Knockbacks 8 | . . . 3 5 Impact 1 | . . . . 1 Kinetic 7 | . . . 3 4 Secondary . | . . . . . Self-Inflicted Damage 210 | . 104 . 59 47 Shots 4 | . 1 . 2 1 Rammed 1 | . 1 . . . Targets Rammed 1 | . 1 . . . Kicked . | . . . . . Crushed . | . . . . . Highest Temperature 470 | . 126 16 470 . Average Temperature 76 | . 31 7 109 . Received Heat Transfer 1584 | . 210 114 1125 135 Effects 5 | . . . 5 . Shutdowns 1 | . . . 1 . Energy Bleed 2 | . . . 2 . Matter Decay 2 | . . . 2 . Siege Activations . | . . . . . Robots Corrupted 2 | . . . 1 1 Combat Hostiles . | . . . . . Parts Fried 2 | . 1 1 . . Impact Corruptions 5 | . . 1 1 3 Robots Melted . | . . . . . Combat Hostiles . | . . . . . Parts Melted 1 | . . 1 . . Heat Transferred 1794 | . 457 740 597 . Parts Sabotaged . | . . . . . Parts Stolen . | . . . . . Parts Stripped . | . . . . . Power Chain Reactions 1 | . 1 . . . Alert | -11 -10 -9 -8 -7 ------- Run | Yrd Mat Mat Mat Fac Peak Influence 590 | 30 249 235 590 230 Initial 229 | . 19 27 32 229 Average 107 | 13 75 103 162 90 Maximum Alert Level 2 | . 1 1 2 1 Low Security (%) 81 | 100 84 79 78 81 Level 1 13 | . 15 20 5 18 Level 2 4 | . . . 15 . Level 3 . | . . . . . Level 4 . | . . . . . Level 5 . | . . . . . High Security . | . . . . . Max Security . | . . . . . Squads Dispatched 17 | . 2 2 5 8 Investigation 3 | . 2 . . 1 Extermination 2 | . . . . 2 Reinforcement 9 | . . 2 2 5 Assault . | . . . . . Garrison 3 | . . . 3 . Intercept . | . . . . . Searches Triggered . | . . . . . Construction Impeded 1 | . . . 1 . Haulers Reinforced . | . . . . . Active Scanning Responses . | . . . . . Cargo Convoy Interrupts 1 | . . . . 1 Stealth | -11 -10 -9 -8 -7 --------- Run | Yrd Mat Mat Mat Fac Distress Signals 12 | . 1 1 5 5 Communications Jammed . | . . . . . Distress Signals . | . . . . . Times Spotted 104 | . 21 13 47 23 Peak Tracking Total 8 | . 5 3 8 6 Tactical Retreats 4 | . 1 . 3 . Traps | -11 -10 -9 -8 -7 ------- Run | Yrd Mat Mat Mat Fac Traps Triggered 4 | . 3 . . 1 Indirectly . | . . . . . Trap Hack Attempts . | . . . . . Triggered . | . . . . . Disarmed . | . . . . . Reprogrammed . | . . . . . Reused . | . . . . . Traps Extracted . | . . . . . Installed . | . . . . . Triggered 1 | . . . . 1 Machines | -11 -10 -9 -8 -7 ---------- Run | Yrd Mat Mat Mat Fac Machines Disabled 7 | . 1 . 5 1 Max in Single Turn 1 | . 1 . 1 1 Garrison Access 1 | . . . . 1 Machines Repaired . | . . . . . Machines Dismantled . | . . . . . Machines Sabotaged . | . . . . . Overloaded Fab Kills . | . . . . . Hacking | -11 -10 -9 -8 -7 --------- Run | Yrd Mat Mat Mat Fac Machines Accessed 15 | . 7 4 2 2 Terminals 13 | . 7 3 2 1 Fabricators . | . . . . . Repair Stations . | . . . . . Recycling Units . | . . . . . Scanalyzers 1 | . . 1 . . Garrison Access 1 | . . . . 1 Total Hacks 41 | . 22 11 5 3 Successful 23 | . 10 9 2 2 Failed 17 | . 11 2 3 1 Catastrophic 4 | . 3 . 1 . Database Lockouts 1 | . 1 . . . Manual 26 | . 16 4 5 1 Terminals 38 | . 22 9 5 2 Fabricators . | . . . . . Repair Stations . | . . . . . Recycling Units . | . . . . . Scanalyzers 2 | . . 2 . . Garrison Access 1 | . . . . 1 Terminal Hacks 10 | . 6 4 . . Robot Analysis 2 | . 1 1 . . Alert Level 2 | . 2 . . . Unreport Threat 2 | . 2 . . . Locate Traps 2 | . 1 1 . . Zone Layout 2 | . . 2 . . Fabricator Hacks . | . . . . . Repair Station Hacks . | . . . . . Recycling Unit Hacks . | . . . . . Scanalyzer 2 | . . 2 . . Insert Component 1 | . . 1 . . Analyze 1 | . . 1 . . Garrison Access Hacks 1 | . . . . 1 Seal Access 1 | . . . . 1 Unauthorized Hacks 10 | . 4 3 2 1 Terminals 10 | . 4 3 2 1 Botnet 10 | . 4 3 2 1 Fabricators . | . . . . . Repair Stations . | . . . . . Recycling Units . | . . . . . Scanalyzers . | . . . . . Garrison Access . | . . . . . Data Cores Recovered 1 | . 1 . . . Used . | . . . . . Hacking Detections 12 | . 6 3 2 1 Full Trace Events 1 | . 1 . . . Feedback Events . | . . . . . Feedback Blocked . | . . . . . Robot Schematics Acquired . | . . . . . Robots Built . | . . . . . Authchips . | . . . . . Time . | . . . . . Total Robot Build Rating . | . . . . . Part Schematics Acquired 1 | . . 1 . . Parts Built . | . . . . . Authchips . | . . . . . Time . | . . . . . Total Part Build Rating . | . . . . . Parts Repaired . | . . . . . Time . | . . . . . Parts Recycled . | . . . . . Recycled Matter . | . . . . . Retrieved Matter . | . . . . . Retrieved Components . | . . . . . Parts Scanalyzed 1 | . . 1 . . Part Schematics Acquired 1 | . . 1 . . Parts Damaged . | . . . . . Bothacking | -11 -10 -9 -8 -7 ------------ Run | Yrd Mat Mat Mat Fac Used RIF Installer . | . . . . . Robots Hacked . | . . . . . Non-combat . | . . . . . Combat . | . . . . . Robot Hacks Applied . | . . . . . Relay Couplers Released . | . . . . . Fabnet Peak Effective % . | . . . . . Robots Rewired . | . . . . . Allies Hacked . | . . . . . Hacks Repelled . | . . . . . Allies | -11 -10 -9 -8 -7 -------- Run | Yrd Mat Mat Mat Fac Total Allies . | . . . . . Largest Group . | . . . . . Highest-Rated Group . | . . . . . Highest-Rated Ally . | . . . . . Total Orders . | . . . . . Ally Attacks . | . . . . . Total Damage . | . . . . . Kills . | . . . . . Allies Corrupted . | . . . . . Allies Melted . | . . . . . Intel | -11 -10 -9 -8 -7 ------- Run | Yrd Mat Mat Mat Fac Robot Analysis Total 2 | . 1 1 . . Derelict Logs Recovered . | . . . . . Drone Launches . | . . . . . Drone Recoveries . | . . . . . Exploration | -11 -10 -9 -8 -7 ------------- Run | Yrd Mat Mat Mat Fac Turns Passed 5639 | 226 1067 533 1664 2149 Spaces Moved 3063 | 173 811 349 915 815 Core 1 | 1 . . . . Treads 891 | . . . 76 815 Legs . | . . . . . Wheels 2171 | 172 811 349 839 . Hover . | . . . . . Flight . | . . . . . Fastest Speed 50 | 50 80 105 110 240 Average Speed 149 | 79 106 116 133 240 Slowest Speed 400 | 80 110 120 240 400 Overloaded Moves . | . . . . . Propulsion Burnouts . | . . . . . Robots Hopped . | . . . . . Cave-ins Triggered . | . . . . . Exploration Rate (%) 43 | 8 96 37 55 23 Regions Visited 4 Branch Regions . Pre-discovered Areas . | . . . . . Known Exits Taken . | . . . . . Unknown Exits Taken 4 | 1 1 1 1 . Scrap Searched . | . . . . . Spaces Dug 24 | . . 1 2 21 Terrain Destroyed 131 | . 38 1 28 64 Melee 23 | . . 1 2 20 Projectile 6 | . . . 2 4 AOE 102 | . 38 . 24 40 Terrain Rammed . | . . . . . Walls Destroyed . | . . . . . Machines Disabled . | . . . . . Actions | -11 -10 -9 -8 -7 --------- Run | Yrd Mat Mat Mat Fac Total 3659 | 222 929 417 1178 913 Wait 143 | . 33 16 93 1 Move 3059 | 172 810 348 914 815 Hop . | . . . . . Pick Up 66 | 8 14 9 20 15 Fast Attach 21 | 7 3 1 7 3 Attach 20 | . 3 4 10 3 Detach 3 | . . 1 1 1 Swap 36 | . 8 4 15 9 Drop 50 | . 8 5 23 14 Fire 228 | 35 49 26 92 26 Melee 32 | . . 3 3 26 Ram 1 | . 1 . . . Kick . | . . . . . Crush . | . . . . . Escape Stasis . | . . . . . Rewire . | . . . . . Trap . | . . . . . Miscellaneous . | . . . . . Route ------- -11/Scrapyard -10/Materials (discovered 5 exits: *Mat x3 / [*Min x2]) -9/Materials -8/Materials -7/Factory (discovered 2 exits: [*Fac] / [*Low]) History --------- Turn | Location | Event 14 | -11/Scrapyard | Discovered new exit (range 15) 227 | -11/Scrapyard | Entered Materials 313 | -10/Materials | Build established: Mutant 345 | -10/Materials | Discovered new exit (range 11) 424 | -10/Materials | Discovered new exit (range 8) 534 | -10/Materials | Discovered new exit (range 15) 777 | -10/Materials | Central database locked down 886 | -10/Materials | Discovered new exit (range 9) 930 | -10/Materials | Discovered new exit (range 16) 1045 | -10/Materials | Build established: Scavenger-Mutant 1184 | -10/Materials | Core integrity fell below 50% 1294 | -10/Materials | Entered another Materials area 1294 | -9/Materials | Evolved 2 slots: Utility x1, Weapon x1 1793 | -9/Materials | Discovered new exit (range 16) 1827 | -9/Materials | Entered another Materials area 1827 | -8/Materials | Evolved 2 slots: Utility x2 2354 | -8/Materials | Build established: Tank 3122 | -8/Materials | Discovered new exit (range 20) 3156 | -8/Materials | Garrison activated, responded to threat 3289 | -8/Materials | Destroyed 14 combat bots 3294 | -8/Materials | Lost 8 parts (1p3n2u2w) 3334 | -8/Materials | Core integrity fell below 50% 3491 | -8/Materials | Entered Factory 3491 | -7/Factory | Evolved 2 slots: Propulsion x1, Utility x1 3592 | -7/Factory | Build established: Scavenger-Tank 4141 | -7/Factory | Build established: Scavenger-Mutant 5169 | -7/Factory | Cargo convoy interrupted 5190 | -7/Factory | Discovered new exit (range 16) 5531 | -7/Factory | Build established: Mutant 5626 | -7/Factory | Discovered new exit (range 9) 5640 | -7/Factory | Self-destructed Last Messages --------------- 05569_ Discarded Hacking Suite. 05576_ Acquired 10 matter. 05576_ R-06 Scavenger collects Imp. Heat Sink. 05577_ ALERT: Suspicious intruders detected, dispatching Specialist reinforcements to area. 05579_ R-06 Scavenger collects Weapon Cycler. 05580_ System Restoration Module purges 1% system corruption (1%). 05583_ R-06 Scavenger collects Angular Momentum Engine. 05585_ Slug penetrates Wall. 05587_ R-06 Scavenger collects Lrg. Matter Pod. 05600_ Acquired Flak Gun. 05613_ ALERT: Suspicious intruders detected, dispatching Specialist reinforcements to area. 05626_ EXIT=FOUND 05627_ Penetrated by Slug. 05630_ Lgt. Treads destroyed. 05631_ Penetrated by Slug. 05637_ Nuclear Core destroyed. 05638_ Slug penetrates Wall. 05639_ Flak Gun severed. Map ----- +----------------------------------------------------+ | #????????# #?????????? | | #????????# < #?????????? | | ########## ] #?????????? | | #?????????? | | ################# #?????????? | | #???????????????### ###?????????? | | ####??????????????# #???????????? | | #########+###"##"#????########### #???????????? | | #??# ##????# ## #???????????? | | #### #?????#] """ ## ##??????????? | | + ##????# """ [# #?########## | | #### "#????# """ # ### # | | ???# ##????# + + # | | ???# /] #?????# """ # ### """ # | | ???# ] #?????# [""" # #?# """ # | | ???# #?????# ==""" ### ###?# """ # | | ???# #?????#|!*%!%! #?# #???# # | | ???# #?????############ ##### """ # | | ???# #?????## = # # """ # | | ???# | #??????# ! %%# # """ # | | #################??????# ! # + # | | #?????????????# + # """ ! # | | ] #????????????## # # """ # | | """ """ #????????????#; c # # """ # | | """ """ #???????????### cu # # # | | """ """ #???????????# # @c = # # """ # | | #????????????#xx;######## # """ # | | = #????????????## # + """ # | | #?????????????# # # # | | +####+####?????????????# # ########## | | #??????????????# tH [ # #????????? | | #??????????????###;##+#### #????????? | | #????????????????? ? ? #????????? | | #?##############?? ? #????????? | | #?# !!= #?? < ?? #????????? | | #?#! ! ! =! #?? ?? #????????? | | #?# ! = #?? ? #????????? | | ### #??##+######### #????????? | | # #?????????????? ?????????? | | # #?????????????? ?????????? | | + """ """ #????????????????????????? | | # """ """ #????????????????????????? | | # """ """ #????????????????????????? | | #######"### "" "" #????????????????????????? | | ! ##?# "" "" #????????????????????????? | | #??# / #????????????????????????? | | """ #??##############????????????????????????? | | """ #????????????????????????????????????????? | | """ #????????????????????????????????????????? | | #????????????????????????????????????????? | +----------------------------------------------------+ Best States ------------- Heat Dissipation 61 Energy Generation 14 Energy Capacity 280 Matter Stores 300 Matter Capacity 300 Sight Range 20 Terrain Scan Density 10 Armor Coverage 300 Resistance: KI 20 Resistance: TH 15 Evasion (%) 44 Recoil Reduction 3 Offensive Hacking 10 Item Schematics ----------------- Hcp. Storage Unit | -9/Materials | Scanalyzed Robot Schematics ------------------ None Fabricated ------------ Nothing Alien Tech Used ----------------- None Achievements -------------- None Challenges ------------ None Game ------ Seed DiametricPortablePerforator Manual? 0 Play Time 00:48:59 Cumulative 145.8 hours Start 2025.03.29 @ 16:33:50 End 2025.03.29 @ 17:46:18 Sessions 2 Manual Loads 0 Difficulty Rogue Special Mode None Game No. 145 Rogue 138 Adventurer 0 Explorer 7 Win Type - Total 2 Types 2/0/0/0/0/0/0/0/0 Lore% 51 Gallery% 53 Achievement% 45 Wizard Run 0 Options --------- Layout 0 ASCII 0 Keyboard 1 Movement Arrows Keybinds 0 Fullscreen 1 Font 24/Smallcaps Map View 76x50 Zoom Use 0% Tactical HUD 1 Map Filters NONE Filters NONE Steam 1 RUN: 5b7e6791-fcbf-4aef-831b-df03491d1fcf